bitfinex/quotes_SOLUSD_20251212
["timestamp","ask_amount","ask_price","bid_price","bid_amount"]
[1765498620796,0.1,137.01,137.0,17.09426806]
[1765498620994,0.1,137.01,137.0,17.75426806]
[1765498621291,0.1,137.01,137.0,20.62138164]
[1765498622496,0.1,137.01,137.0,27.92065171]
[1765498624174,0.1,137.01,137.0,40.96774291]
[1765498624593,0.1,137.01,137.0,30.10062933]
[1765498624896,0.1,137.01,137.0,37.81630619]
[1765498625474,0.79,137.01,137.0,8.80994492]
[1765498625677,3.65711358,137.01,137.0,8.80994492]
[1765498626285,10.95585089,137.01,137.0,8.80994492]
[1765498627382,29.20269418,137.01,136.94,16.80994492]
[1765498627593,2.86711358,136.98,136.94,29.85703612]
[1765498627993,0.69,137.0,136.91,13.0470912]
[1765498627994,2.86711358,136.96,136.91,13.0470912]
[1765498628298,10.16941662,136.95,136.92,8.80994492]
[1765498628476,10.16941662,136.95,136.92,9.46994492]
[1765498628678,10.85941662,136.95,136.92,9.46994492]
[1765498629402,10.16859321,136.96,136.92,16.773352]
[1765498629619,10.85859321,136.96,136.92,16.773352]
[1765498629782,10.85859321,136.96,136.92,9.46994492]
[1765498630107,10.85859321,136.96,136.92,16.77346852]
[1765498630480,0.69,136.95,136.92,9.46994492]
[1765498630994,0.69,136.95,136.92,16.77326864]
[1765498631716,7.99202897,136.95,136.92,16.77326864]
[1765498632911,7.99202897,136.95,136.92,9.46994492]
[1765498633803,3.57711358,136.97,136.94,8.80994492]
[1765498634001,0.71,136.96,136.94,8.80994492]
[1765498634313,7.30033581,136.98,136.96,8.80994492]
[1765498634501,3.57711358,136.98,136.94,8.0]
[1765498634816,0.67,136.97,136.95,8.80994492]
[1765498635519,7.97110811,136.97,136.95,8.80994492]
[1765498636013,0.67,136.96,136.94,8.80994492]
[1765498637903,7.97154028,136.96,136.94,8.80994492]
[1765498638283,12.45062073,136.96,136.94,8.80994492]
[1765498639018,7.97154028,136.96,136.94,8.80994492]
[1765498640317,12.45062073,136.96,136.94,8.80994492]
[1765498642129,7.30093455,136.97,136.95,0.72]
[1765498642824,7.30093455,136.97,136.94,9.52994492]
[1765498643004,7.97093455,136.97,136.94,9.52994492]
[1765498643403,0.1,137.01,136.99,8.80994492]
[1765498643613,0.1,137.01,137.0,9.52994492]
[1765498644707,0.1,137.01,136.99,12.47908045]
[1765498644708,12.54781776,137.01,136.98,8.80994492]
[1765498644923,4.47908045,137.0,136.98,8.80994492]
[1765498645124,5.14908045,137.0,136.98,8.80994492]
[1765498645322,7.9698029,136.99,136.98,8.80994492]
[1765498645830,7.29945532,137.0,136.97,9.52994492]
[1765498649122,7.96945532,137.0,136.97,9.52994492]
[1765498650423,7.29945532,137.0,136.97,9.52994492]
[1765498650733,8.06898395,137.01,136.97,0.72]
[1765498651328,0.67,137.0,136.97,0.72]
[1765498651713,12.5480644,137.01,136.97,0.72]
[1765498653431,30.79490769,137.01,136.97,0.72]
[1765498656127,30.79490769,137.01,136.98,8.80994492]
[1765498656315,7.96959653,137.0,136.98,8.80994492]
[1765498657240,7.39893525,137.01,136.98,9.52994492]
[1765498657444,12.5480157,137.01,136.98,9.52994492]
[1765498659344,8.06893525,137.01,136.98,9.52994492]
[1765498659548,8.06893525,137.01,136.98,16.83025613]
[1765498659749,0.1,137.01,137.0,8.80994492]
[1765498660349,0.1,137.01,137.0,9.52994492]
[1765498660553,0.1,137.01,137.0,27.34043971]
[1765498661121,0.1,137.01,137.0,34.63970978]
[1765498665749,0.1,137.01,137.0,21.59261858]
[1765498668624,0.1,137.02,137.01,0.28432314]
[1765498668821,0.72,137.09,137.06,8.80994492]
[1765498669352,5.19908045,137.09,137.06,8.80994492]
[1765498669861,4.47908045,137.07,137.01,7.39425887]
[1765498670161,8.01648516,137.06,137.02,8.80994492]
[1765498670460,12.49556561,137.06,137.02,9.46994492]
[1765498670754,0.72,137.05,137.02,9.46994492]
[1765498670938,0.72,137.05,137.02,16.76797433]
[1765498672178,8.01661856,137.05,137.02,16.76797433]
[1765498675455,0.72,137.06,137.02,16.76797433]
[1765498675659,4.47908045,137.07,137.02,16.76797433]
[1765498675858,0.72,137.05,137.02,16.76797433]
[1765498677662,0.72,137.05,137.02,21.24705478]
[1765498679875,8.01663614,137.05,137.02,16.76797433]
[1765498680955,7.29663614,137.05,137.02,8.80994492]
[1765498681275,0.72,137.04,136.99,8.80994492]
[1765498681654,4.47908045,137.03,136.99,8.80994492]
[1765498682078,0.72,137.02,136.99,8.80994492]
[1765498682282,7.29873731,137.01,136.99,8.80994492]
[1765498682763,8.01873731,137.01,136.99,8.80994492]
[1765498684055,0.72,137.0,136.98,8.80994492]
[1765498684254,5.19908045,137.0,136.98,8.80994492]
[1765498684477,0.72,137.0,136.98,8.80994492]
[1765498684974,0.72,137.0,136.97,20.58976567]
[1765498685174,0.72,137.0,136.97,21.24976567]
[1765498685376,0.72,137.0,136.97,16.77068522]
[1765498685556,0.72,137.0,136.97,21.24976567]
[1765498686169,0.72,137.02,136.99,8.80994492]
[1765498686380,0.72,137.01,136.99,8.80994492]
[1765498686753,18.24502062,137.03,136.99,8.80994492]
[1765498686967,0.82,137.1,137.03,8.80994492]
[1765498687169,0.82,137.1,137.07,8.80994492]
[1765498687371,0.82,137.1,137.04,13.13908045]
[1765498687372,11.77355853,137.09,137.04,13.13908045]
[1765498687554,11.77355853,137.09,137.05,8.80994492]
[1765498687757,0.72,137.08,137.05,8.80994492]
[1765498687952,8.01548297,137.08,137.05,8.80994492]
[1765498688195,7.29548297,137.08,137.05,8.80994492]
[1765498688357,7.29548297,137.08,137.07,8.80994492]
[1765498688691,7.29473075,137.09,137.07,8.80994492]
[1765498688891,8.01473075,137.09,137.07,8.80994492]
[1765498689176,7.39410636,137.1,137.09,8.80994492]
[1765498689375,8.11410636,137.1,137.09,8.80994492]
[1765498689591,8.11410636,137.1,137.07,8.66]
[1765498689757,0.72,137.09,137.06,8.80994492]
[1765498690883,7.29501021,137.08,137.06,8.80994492]
[1765498692058,0.72,137.08,137.06,8.80994492]
[1765498693060,8.0152501,137.08,137.06,8.80994492]
[1765498693461,7.2952501,137.08,137.06,8.80994492]
[1765498694371,7.9752501,137.08,137.06,8.80994492]
[1765498695805,0.1,137.1,137.09,8.80994492]
[1765498695996,0.1,137.1,137.09,35.29043971]
[1765498696689,0.1,137.1,137.09,21.85703612]
[1765498696891,0.1,137.1,137.09,32.69610138]
[1765498697092,0.1,137.1,137.09,33.38610138]
[1765498697391,0.1,137.1,137.09,40.68057946]
[1765498697704,0.1,137.1,137.09,40.9649026]
[1765498698082,0.1,137.1,137.09,59.19395881]
[1765498698281,0.1,137.1,137.09,40.9649026]
[1765498698505,0.1,137.1,137.09,48.25640647]
[1765498700396,0.1,137.1,137.09,35.20931527]
[1765498702112,0.79,137.19,137.14,0.28432314]
[1765498702413,0.1,137.19,137.16,11.66901018]
[1765498702712,0.69,137.18,137.16,8.80994492]
[1765498705009,8.07918955,137.19,137.16,8.80994492]
[1765498705712,25.61209209,137.19,137.16,8.80994492]
[1765498705912,3.54906526,137.18,137.16,8.80994492]
[1765498706101,3.54906526,137.18,137.15,8.80994492]
[1765498706102,0.69,137.17,137.15,8.80994492]
[1765498707615,7.98055587,137.17,137.15,8.80994492]
[1765498708117,0.69,137.16,137.15,8.80994492]
[1765498708817,0.69,137.17,137.15,8.80994492]
[1765498710731,8.07927139,137.19,137.15,32.69729032]
[1765498711315,7.38927139,137.19,137.15,32.00729032]
[1765498711523,8.07927139,137.19,137.16,8.67]
[1765498712423,8.07927139,137.19,137.17,8.80994492]
[1765498712619,7.38927139,137.19,137.17,8.80994492]
[1765498713234,8.07927139,137.19,137.17,8.80994492]
[1765498715538,7.38927139,137.19,137.17,8.80994492]
[1765498715840,0.1,137.19,137.18,20.33901018]
[1765498716012,0.1,137.19,137.18,16.78994492]
[1765498716013,0.79,137.19,137.18,16.78994492]
[1765498716214,8.07916101,137.19,137.17,8.80994492]
[1765498716648,3.54906526,137.18,137.17,8.80994492]
[1765498716844,3.54906526,137.18,137.13,8.80994492]
[1765498717168,2.85906526,137.15,137.13,8.80994492]
[1765498717665,3.54906526,137.15,137.13,8.80994492]
[1765498718357,10.84120185,137.14,137.12,7.98]
[1765498718556,3.54906526,137.13,137.09,0.69]
[1765498718734,2.85906526,137.12,137.1,8.80994492]
[1765498718931,2.85906526,137.11,137.1,8.80994492]
[1765498719140,3.54906526,137.11,137.09,7.98]
[1765498719337,0.69,137.1,137.09,8.80994492]
[1765498719639,3.54906526,137.1,137.06,7.98]
[1765498719838,2.85906526,137.09,137.06,7.98]
[1765498720033,3.54906526,137.09,137.06,7.98]
[1765498720544,10.84375533,137.09,137.06,7.98]
[1765498720849,10.84375533,137.09,137.07,8.80994492]
[1765498720850,0.69,137.08,137.07,8.80994492]
[1765498721862,0.69,137.08,137.06,7.98]
[1765498721863,3.54906526,137.08,137.06,7.98]
[1765498722038,3.54906526,137.08,137.04,13.0470912]
[1765498722039,2.85906526,137.07,137.05,8.80994492]
[1765498722249,3.54906526,137.07,137.05,8.80994492]
[1765498722545,10.84484784,137.07,137.05,8.80994492]
[1765498724272,7.98578258,137.07,137.05,8.80994492]
[1765498724473,10.84484784,137.07,137.05,8.80994492]
[1765498724638,7.98578258,137.07,137.05,8.80994492]
[1765498725268,7.98578258,137.07,137.03,15.95742916]
[1765498725894,7.98578258,137.07,137.04,8.80994492]
[1765498726043,7.98578258,137.07,137.04,9.48994492]
[1765498726481,10.84484784,137.07,137.04,9.48994492]
[1765498726644,2.85906526,137.05,137.03,7.98]
[1765498726849,2.85906526,137.04,137.03,8.80994492]
[1765498727051,2.85906526,137.04,137.02,8.80994492]
[1765498727662,3.53906526,137.03,137.01,8.80994492]
[1765498728746,10.83704884,137.03,137.01,8.80994492]
[1765498733193,10.83704884,137.03,136.97,21.39489707]
[1765498733194,3.53906526,137.02,136.97,16.78994492]
[1765498733394,2.85906526,137.0,136.97,16.78994492]
[1765498733701,2.85906526,137.0,136.97,17.46994492]
[1765498734200,3.53906526,136.99,136.97,16.78994492]
[1765498734494,3.53906526,136.99,136.97,7.98]
[1765498734697,0.68,136.98,136.96,0.2]
[1765498735125,7.30033581,136.98,136.96,0.2]
[1765498740907,7.30033581,136.98,136.96,0.88]
[1765498741504,0.68,136.99,136.96,0.88]
[1765498741713,7.29927007,137.0,136.97,9.48994492]
[1765498741919,7.29927007,137.0,136.98,0.68]
[1765498742206,7.29927007,137.0,136.97,0.68]
[1765498742408,7.97927007,137.0,136.97,0.68]
[1765498743442,10.83833533,137.0,136.97,0.68]
[1765498748139,7.29891343,137.01,136.98,8.80994492]
[1765498748311,7.29891343,137.01,136.99,0.68]
[1765498748934,7.97891343,137.01,136.98,16.80994492]
[1765498749251,7.97891343,137.01,136.98,17.48994492]
[1765498749428,7.29891343,137.01,136.98,17.48994492]
[1765498750118,0.68,137.06,137.0,11.66901018]
[1765498750318,0.68,137.06,137.02,11.66901018]
[1765498750523,25.53520273,137.07,137.03,2.85906526]
[1765498750727,25.53520273,137.07,137.03,3.53906526]
[1765498750922,26.21520273,137.07,137.04,0.68]
[1765498752407,8.0,137.1,137.05,11.66901018]
[1765498752408,8.68,137.1,137.05,11.66901018]
[1765498752626,2.85906526,137.12,137.07,8.80994492]
[1765498752833,0.68,137.11,137.07,8.80994492]
[1765498753022,0.69,137.11,137.08,0.71]
[1765498753219,7.29235032,137.13,137.09,11.66901018]
[1765498753420,7.29235032,137.13,137.09,8.80994492]
[1765498753421,2.85906526,137.13,137.09,8.80994492]
[1765498753620,7.98288214,137.12,137.09,8.80994492]
[1765498754750,7.29288214,137.12,137.09,9.51994492]
[1765498755760,7.29235032,137.13,137.09,9.51994492]
[1765498755944,7.98235032,137.13,137.09,9.51994492]
[1765498756255,7.29235032,137.13,137.1,0.71]
[1765498756559,7.29235032,137.13,137.11,8.80994492]
[1765498756946,3.54906526,137.17,137.12,9.51994492]
[1765498757261,28.37670888,137.16,137.12,9.51994492]
[1765498757446,29.06670888,137.16,137.12,9.51994492]
[1765498758657,30.67484674,137.16,137.12,9.51994492]
[1765498758853,26.20764362,137.16,137.12,9.51994492]
[1765498759447,7.29075532,137.16,137.13,0.69]
[1765498759655,7.2902238,137.17,137.13,0.69]
[1765498759846,7.9902238,137.17,137.13,0.69]
[1765498760960,30.68298644,137.17,137.13,0.69]
[1765498761865,0.7,137.16,137.13,0.69]
[1765498762465,7.9902238,137.17,137.14,8.80994492]
[1765498762657,7.2902238,137.17,137.14,8.80994492]
[1765498762848,7.2902238,137.17,137.14,9.49994492]
[1765498765256,7.2902238,137.17,137.14,16.10170677]
[1765498765444,7.2902238,137.17,137.15,0.69]
[1765498765996,7.2902238,137.17,137.14,16.78994492]
[1765498766273,7.2902238,137.17,137.14,24.77174785]
[1765498766643,7.2902238,137.17,137.14,24.08174785]
[1765498766846,7.98993564,137.18,137.15,0.69]
[1765498767067,7.28993564,137.18,137.15,0.69]
[1765498769070,7.98993564,137.18,137.15,0.69]
[1765498769465,0.1,137.19,137.18,8.80994492]
[1765498769669,0.1,137.19,137.15,26.20949504]
[1765498769670,0.7,137.18,137.16,8.80994492]
[1765498769900,12.55636413,137.19,137.16,16.78994492]
[1765498770424,0.7,137.18,137.16,16.78994492]
[1765498770987,0.7,137.18,137.16,8.80994492]
[1765498771306,5.16720312,137.18,137.15,8.80994492]
[1765498771684,4.46720312,137.18,137.15,8.80994492]
[1765498772008,5.16720312,137.18,137.15,8.80994492]
[1765498772307,7.99037997,137.17,137.15,8.80994492]
[1765498772989,0.7,137.16,137.13,7.98]
[1765498773191,18.31429432,137.19,137.14,9.49994492]
[1765498773383,7.28969237,137.18,137.14,16.7914705]
[1765498773586,12.45689549,137.18,137.14,9.49994492]
[1765498774504,12.45689549,137.18,137.15,0.69]
[1765498775390,7.98969237,137.18,137.15,0.69]
[1765498775706,0.1,137.19,137.17,21.85703612]
[1765498776031,0.1,137.19,137.18,13.27714804]
[1765498776204,0.1,137.19,137.18,13.96714804]
[1765498776411,0.1,137.19,137.18,21.25684041]
[1765498776624,0.1,137.24,137.22,8.80994492]
[1765498776918,0.1,137.24,137.23,7.98]
[1765498777125,0.1,137.24,137.23,8.67]
[1765498777347,0.1,137.24,137.23,7.98]
[1765498777648,0.1,137.24,137.21,7.98]
[1765498777649,30.76997199,137.24,137.21,7.98]
[1765498777811,4.46720312,137.23,137.2,7.98]
[1765498778018,0.7,137.23,137.2,7.98]
[1765498778226,0.7,137.22,137.2,7.98]
[1765498778532,0.7,137.22,137.19,8.80994492]
[1765498778533,4.46720312,137.21,137.19,8.80994492]
[1765498778735,4.46720312,137.21,137.17,16.78994492]
[1765498778925,5.16720312,137.2,137.17,16.78994492]
[1765498779129,5.16720312,137.2,137.17,17.47994492]
[1765498779446,5.16720312,137.19,137.17,8.80994492]
[1765498779643,4.46720312,137.18,137.14,16.78994492]
[1765498779815,5.16720312,137.18,137.14,16.78994492]
[1765498780010,5.16720312,137.18,137.14,17.47994492]
[1765498780207,0.7,137.18,137.14,24.77171244]
[1765498780438,12.4571862,137.18,137.14,24.77171244]
[1765498780824,0.7,137.17,137.14,16.78994492]
[1765498781127,4.46720312,137.16,137.14,8.80994492]
[1765498781340,5.16720312,137.17,137.14,8.80994492]
[1765498782042,7.29075532,137.16,137.14,8.80994492]
[1765498783111,7.94075532,137.16,137.14,8.80994492]
[1765498783530,7.29075532,137.16,137.14,9.46994492]
[1765498783722,7.29075532,137.16,137.14,8.80994492]
[1765498786746,7.29075532,137.16,137.15,0.66]
[1765498787124,7.29075532,137.16,137.14,9.46994492]
[1765498787822,7.29075532,137.16,137.14,8.80994492]
[1765498788023,7.94075532,137.16,137.13,7.98]
[1765498788239,30.63484674,137.16,137.13,7.98]
[1765498788417,30.63484674,137.16,137.13,8.64]
[1765498788418,26.16764362,137.16,137.13,8.64]
[1765498788619,30.63484674,137.16,137.13,8.64]
[1765498789246,30.63484674,137.16,137.13,0.66]
[1765498789734,7.29075532,137.16,137.13,0.66]
[1765498789946,7.29075532,137.16,137.14,8.80994492]
[1765498790452,7.29075532,137.16,137.14,9.46994492]
[1765498791024,0.65,137.17,137.14,9.46994492]
[1765498791025,7.94040613,137.17,137.14,9.46994492]
[1765498791946,4.46720312,137.16,137.14,8.80994492]
[1765498792254,5.11720312,137.16,137.13,8.80994492]
[1765498792442,5.11720312,137.16,137.13,9.46994492]
[1765498792628,4.46720312,137.16,137.13,9.46994492]
[1765498792838,0.65,137.16,137.13,16.76213326]
[1765498793344,7.94088772,137.16,137.13,16.76213326]
[1765498793720,0.65,137.16,137.13,16.76213326]
[1765498794326,7.29012911,137.18,137.14,0.66]
[1765498794549,7.29012911,137.18,137.16,8.80994492]
[1765498795052,7.29012911,137.18,137.16,9.46994492]
[1765498795755,7.29012911,137.18,137.16,8.80994492]
[1765498795954,5.11720312,137.17,137.12,8.80994492]
[1765498796122,4.46720312,137.15,137.12,17.44994492]
[1765498796549,5.11720312,137.16,137.12,17.44994492]
[1765498797652,7.29128691,137.15,137.12,17.44994492]
[1765498797857,11.75849003,137.15,137.12,17.44994492]
[1765498798654,7.29128691,137.15,137.12,17.44994492]
[1765498798957,7.94098654,137.16,137.13,0.66]
[1765498799138,12.40818966,137.16,137.13,0.66]
[1765498799651,7.94098654,137.16,137.13,0.66]
[1765498799826,12.40818966,137.16,137.13,0.66]
[1765498800946,11.75818966,137.16,137.13,0.66]
[1765498801128,7.29098654,137.16,137.13,0.66]
[1765498801464,0.65,137.19,137.15,8.80994492]
[1765498801758,11.75583285,137.2,137.15,8.80994492]
[1765498801759,4.46720312,137.17,137.15,7.98]
[1765498802268,4.46720312,137.17,137.14,8.80994492]
[1765498802269,5.11720312,137.16,137.13,7.98]
[1765498802626,4.46720312,137.16,137.12,9.46994492]
[1765498802939,7.29181857,137.14,137.12,8.80994492]
[1765498803451,7.29181857,137.14,137.12,9.46994492]
[1765498803660,17.51429432,137.2,137.13,13.93714804]
[1765498803661,4.46720312,137.19,137.13,13.93714804]
[1765498803961,5.11720312,137.2,137.14,12.44720312]
[1765498804129,5.11720312,137.2,137.16,8.80994492]
[1765498804751,7.28809853,137.21,137.18,8.80994492]
[1765498805152,7.28809853,137.21,137.18,9.46994492]
[1765498805348,7.28809853,137.21,137.19,0.66]
[1765498805538,7.28771784,137.22,137.2,8.80994492]
[1765498805859,0.65,137.23,137.2,8.80994492]
[1765498805860,7.28728179,137.23,137.2,8.80994492]
[1765498806154,0.65,137.23,137.2,8.64]
[1765498806963,7.93751743,137.23,137.2,8.64]
[1765498807328,7.28751743,137.23,137.2,8.64]
[1765498808430,7.28751743,137.23,137.2,7.98]
[1765498808753,0.1,137.24,137.21,9.46994492]
[1765498809159,0.1,137.24,137.22,0.66]
[1765498810759,0.1,137.24,137.22,7.9474854]
[1765498811141,0.1,137.24,137.23,9.46994492]
[1765498811349,0.1,137.24,137.23,17.44994492]
[1765498812344,0.1,137.24,137.23,29.2041844]
[1765498813445,0.1,137.24,137.23,29.48850754]
[1765498814636,0.1,137.24,137.23,24.74698128]
[1765498814839,0.1,137.24,137.23,29.35634597]
[1765498815054,0.1,137.24,137.23,29.49850754]
[1765498816238,0.1,137.24,137.23,33.39859528]
[1765498817058,8.09248918,137.32,137.27,26.32423924]
[1765498817361,8.09248918,137.32,137.28,7.98]
[1765498817567,8.09248918,137.32,137.28,8.65]
[1765498817776,8.09248918,137.32,137.28,15.93395028]
[1765498817948,0.81,137.32,137.29,8.80994492]
[1765498818269,0.1,137.32,137.31,8.80994492]
[1765498818759,8.05226041,137.32,137.3,7.98]
[1765498819339,0.1,137.32,137.31,8.80994492]
[1765498820164,0.1,137.32,137.31,9.50994492]
[1765498820367,0.1,137.32,137.31,8.80994492]
[1765498821048,0.1,137.32,137.31,9.50994492]
[1765498821444,0.1,137.32,137.31,19.64458286]
[1765498822774,0.1,137.32,137.31,19.928906]
[1765498823477,0.1,137.32,137.31,12.3617921]
[1765498823673,0.1,137.32,137.31,9.50994492]
[1765498823866,0.1,137.32,137.31,8.80994492]
[1765498824176,0.1,137.32,137.31,16.78994492]
[1765498825251,0.1,137.32,137.31,40.9559972]
[1765498826153,0.1,137.32,137.31,38.10415002]
[1765498827261,0.1,137.32,137.31,16.78994492]
[1765498827468,0.1,137.32,137.31,8.80994492]
[1765498827679,0.1,137.32,137.31,19.64458286]
[1765498827981,0.1,137.32,137.31,19.928906]
[1765498829377,0.1,137.32,137.31,8.80994492]
[1765498829573,0.1,137.32,137.31,9.50994492]
[1765498829779,0.1,137.32,137.31,16.79273568]
[1765498830895,0.1,137.32,137.31,19.928906]
[1765498831187,0.1,137.32,137.31,17.07705882]
[1765498832386,0.1,137.32,137.31,19.928906]
[1765498832958,0.1,137.32,137.31,17.07705882]
[1765498833789,0.1,137.32,137.31,16.79273568]
[1765498834288,0.1,137.32,137.31,8.80994492]
[1765498834491,0.1,137.32,137.28,0.28432314]
[1765498834492,0.77,137.32,137.28,7.28389229]
[1765498834667,3.62184718,137.32,137.3,7.98]
[1765498834858,2.85184718,137.31,137.28,7.98]
[1765498835062,2.85184718,137.31,137.24,0.7]
[1765498835063,2.85184718,137.29,137.24,0.7]
[1765498835277,10.13622946,137.28,137.25,7.98]
[1765498835479,7.28399031,137.29,137.26,8.80994492]
[1765498835662,3.52184718,137.3,137.26,9.50994492]
[1765498836572,25.48976767,137.31,137.26,9.50994492]
[1765498836887,0.67,137.3,137.26,9.50994492]
[1765498837104,3.52184718,137.3,137.26,9.50994492]
[1765498837403,10.80537885,137.3,137.26,16.79514042]
[1765498837567,7.95353167,137.3,137.26,16.79514042]
[1765498837764,3.52184718,137.29,137.26,8.80994492]
[1765498838186,0.67,137.28,137.26,8.80994492]
[1765498838384,3.52184718,137.29,137.26,8.80994492]
[1765498838571,0.67,137.29,137.26,8.80994492]
[1765498839108,7.95436627,137.29,137.26,8.80994492]
[1765498839478,10.80621345,137.29,137.26,8.80994492]
[1765498839983,3.52184718,137.29,137.26,8.80994492]
[1765498840297,10.80580002,137.29,137.26,8.80994492]
[1765498840479,7.95395284,137.29,137.26,8.80994492]
[1765498840687,10.80580002,137.29,137.26,8.80994492]
[1765498841070,7.95395284,137.29,137.26,8.80994492]
[1765498841271,10.80580002,137.29,137.26,8.80994492]
[1765498842700,0.67,137.29,137.26,16.7952981]
[1765498842875,0.67,137.29,137.26,16.0952981]
[1765498843298,0.67,137.29,137.26,8.80994492]
[1765498843299,7.95390299,137.29,137.26,8.80994492]
[1765498844677,2.85184718,137.27,137.25,8.80994492]
[1765498844930,3.51184718,137.28,137.25,8.80994492]
[1765498845116,0.66,137.28,137.25,8.80994492]
[1765498845826,0.66,137.28,137.25,9.45994492]
[1765498846132,0.66,137.28,137.25,8.80994492]
[1765498846631,0.66,137.28,137.25,9.45994492]
[1765498846834,7.28491294,137.27,137.25,9.45994492]
[1765498848639,7.28491294,137.27,137.25,17.43994492]
[1765498849020,8.08,137.32,137.26,0.65]
[1765498849021,10.23438887,137.32,137.26,0.65]
[1765498849218,2.85184718,137.3,137.27,7.98]
[1765498849538,0.66,137.29,137.27,7.98]
[1765498850551,7.28380598,137.3,137.28,8.80994492]
[1765498850724,0.1,137.32,137.3,8.80994492]
[1765498850925,0.1,137.32,137.3,16.78994492]
[1765498851136,0.1,137.32,137.3,17.43994492]
[1765498853230,0.1,137.32,137.3,24.72308615]
[1765498854044,0.1,137.32,137.31,12.45395367]
[1765498854221,0.1,137.32,137.31,8.80994492]
[1765498854420,0.1,137.32,137.31,16.09273568]
[1765498854626,0.1,137.32,137.31,32.9259972]
[1765498856152,1e-08,137.33,137.32,9.09426806]
[1765498856326,1e-08,137.33,137.32,20.57611524]
[1765498856528,1e-08,137.33,137.32,26.65585375]
[1765498856732,1e-08,137.33,137.32,20.57611524]
[1765498856934,1e-08,137.33,137.32,26.65585375]
[1765498857328,1e-08,137.33,137.32,29.50770093]
[1765498857532,7.93683301,137.43,137.36,9.09426806]
[1765498857842,7.93683301,137.43,137.38,11.6617921]
[1765498858221,0.66,137.42,137.4,8.80994492]
[1765498858436,7.93683301,137.43,137.4,8.80994492]
[1765498858647,0.66,137.42,137.4,8.80994492]
[1765498858950,2.85184718,137.41,137.38,8.80994492]
[1765498859147,2.85184718,137.41,137.38,16.78994492]
[1765498859448,0.66,137.4,137.38,16.78994492]
[1765498859826,0.66,137.41,137.38,16.78994492]
[1765498860351,3.51184718,137.43,137.38,16.78994492]
[1765498860537,0.66,137.42,137.38,20.2917921]
[1765498860736,0.66,137.42,137.38,17.43994492]
[1765498860938,0.66,137.42,137.38,7.98]
[1765498860939,2.85184718,137.41,137.38,7.98]
[1765498861138,2.85184718,137.4,137.38,7.98]
[1765498861330,2.85184718,137.39,137.37,7.98]
[1765498861643,2.85184718,137.43,137.38,11.6617921]
[1765498861827,2.85184718,137.43,137.38,12.3117921]
[1765498862025,3.51184718,137.42,137.38,9.45994492]
[1765498862370,7.27378527,137.48,137.41,2.85184718]
[1765498862653,3.51184718,137.47,137.42,16.78994492]
[1765498863024,3.51184718,137.46,137.42,16.78994492]
[1765498863421,0.66,137.45,137.42,16.78994492]
[1765498864043,13.0470912,137.52,137.42,19.6417921]
[1765498864233,7.93272727,137.5,137.44,8.80994492]
[1765498864441,7.93176588,137.52,137.46,11.6617921]
[1765498864653,0.66,137.52,137.48,16.06425348]
[1765498864821,7.91430856,137.52,137.49,7.98]
[1765498865027,7.25430856,137.5,137.45,13.6970912]
[1765498865249,7.25430856,137.5,137.46,16.78994492]
[1765498865549,7.25430856,137.51,137.46,16.78994492]
[1765498865736,0.66,137.51,137.47,0.65]
[1765498866122,7.9325469,137.51,137.47,0.65]
[1765498866323,7.9325469,137.51,137.48,8.80994492]
[1765498867050,15.18685546,137.51,137.48,8.80994492]
[1765498867221,7.25430856,137.49,137.46,7.98]
[1765498867425,0.66,137.5,137.46,7.98]
[1765498867624,0.66,137.49,137.46,7.98]
[1765498867849,7.91430856,137.49,137.46,7.98]
[1765498868049,0.66,137.49,137.46,7.98]
[1765498868348,15.18803973,137.49,137.46,7.98]
[1765498868648,0.66,137.48,137.46,7.98]
[1765498869742,32.71118032,137.49,137.46,7.98]
[1765498869935,0.66,137.47,137.45,8.80994492]
[1765498870431,7.27431439,137.47,137.45,8.80994492]
[1765498870737,15.18862295,137.47,137.44,7.96]
[1765498870943,7.93431439,137.47,137.44,7.96]
[1765498871245,15.18862295,137.47,137.44,7.96]
[1765498871436,7.27431439,137.47,137.44,8.61]
[1765498872430,7.93431439,137.47,137.44,8.61]
[1765498874137,7.95430856,137.53,137.47,8.80994492]
[1765498874446,7.25430856,137.52,137.49,8.80994492]
[1765498874749,7.25430856,137.5,137.48,7.96]